[Event "Late-Titled-Tuesday-Blitz-December-26-2023"]
[Site "Chess.com"]
[Date "2023.12.26"]
[Round "8"]
[White "Schwindle"]
[Black "Aguiar94"]
[Result "1-0"]
[WhiteElo "2415"]
[BlackElo "2559"]
[TimeControl "180+1"]
[EndTime "15:26:40 PST"]
[Termination "Schwindle won by resignation"]

1. e4 {[%clk 0:03:00.9]} 1... c5 {[%clk 0:02:58.3]} 2. Nf3 {[%clk 0:03:01.2]}
2... Nc6 {[%clk 0:02:57.7]} 3. d4 {[%clk 0:03:01.1]} 3... cxd4 {[%clk
0:02:58.6]} 4. Nxd4 {[%clk 0:03:00.3]} 4... e6 {[%clk 0:02:58.4]} 5. Nc3 {[%clk
0:03:00.5]} 5... Qc7 {[%clk 0:02:58.2]} 6. Ndb5 {[%clk 0:03:00.2]} 6... Qb8
{[%clk 0:02:58.1]} 7. g3 {[%clk 0:03:00.9]} 7... a6 {[%clk 0:02:57.9]} 8. Nd4
{[%clk 0:03:01.1]} 8... Qc7 {[%clk 0:02:57.5]} 9. Bg2 {[%clk 0:03:00.1]} 9...
Nf6 {[%clk 0:02:58]} 10. O-O {[%clk 0:02:59.3]} 10... d6 {[%clk 0:02:56.3]} 11.
Nxc6 {[%clk 0:02:54.8]} 11... bxc6 {[%clk 0:02:56]} 12. e5 {[%clk 0:02:48.2]}
12... d5 {[%clk 0:02:55.7]} 13. exf6 {[%clk 0:02:47]} 13... gxf6 {[%clk
0:02:56.6]} 14. Bf4 {[%clk 0:02:38.8]} 14... e5 {[%clk 0:02:43]} 15. Re1 {[%clk
0:02:33.8]} 15... Be6 {[%clk 0:02:43.1]} 16. Bd2 {[%clk 0:02:29]} 16... h5
{[%clk 0:02:39.9]} 17. h4 {[%clk 0:02:02.5]} 17... Rb8 {[%clk 0:02:35.3]} 18.
Rb1 {[%clk 0:02:01.2]} 18... a5 {[%clk 0:02:28.3]} 19. Na4 {[%clk 0:01:59.2]}
19... Bd6 {[%clk 0:02:21.4]} 20. c4 {[%clk 0:01:52.5]} 20... d4 {[%clk 0:02:20]}
21. c5 {[%clk 0:01:52.2]} 21... Be7 {[%clk 0:02:18.1]} 22. f4 {[%clk 0:01:49.3]}
22... Rg8 {[%clk 0:02:14.6]} 23. Kh2 {[%clk 0:01:42.4]} 23... Bxa2 {[%clk
0:02:00.8]} 24. Ra1 {[%clk 0:01:20.3]} 24... Bb3 {[%clk 0:01:58.7]} 25. Qxh5
{[%clk 0:01:19.7]} 25... Bxa4 {[%clk 0:01:40.3]} 26. Rxa4 {[%clk 0:01:20.6]}
26... Rxb2 {[%clk 0:01:40.4]} 27. Bxa5 {[%clk 0:01:13.3]} 27... Qc8 {[%clk
0:01:00]} 28. fxe5 {[%clk 0:01:06.2]} 28... f5 {[%clk 0:00:23.9]} 29. e6 {[%clk
0:01:01.7]} 29... Rg6 {[%clk 0:00:20.1]} 30. Qh8+ {[%clk 0:00:58.6]} 30... Bf8
{[%clk 0:00:17.1]} 31. e7 {[%clk 0:00:54.4]} 31... Rxg2+ {[%clk 0:00:14.2]} 32.
Kxg2 {[%clk 0:00:48.8]} 32... Rxg3+ {[%clk 0:00:13.1]} 33. Kf2 {[%clk
0:00:40.2]} 1-0

[Event "Late-Titled-Tuesday-Blitz-December-26-2023"]
[Site "Chess.com"]
[Date "2023.12.26"]
[Round "8"]
[White "protectiago"]
[Black "HappyPawny"]
[Result "0-1"]
[WhiteElo "2053"]
[BlackElo "2249"]
[TimeControl "180+1"]
[EndTime "15:26:43 PST"]
[Termination "HappyPawny won by resignation"]

1. d4 {[%clk 0:02:59.1]} 1... d5 {[%clk 0:02:52.9]} 2. c4 {[%clk 0:02:58.2]}
2... c6 {[%clk 0:02:52.6]} 3. Nf3 {[%clk 0:02:57.6]} 3... Nf6 {[%clk 0:02:52.2]}
4. Qc2 {[%clk 0:02:57.4]} 4... e6 {[%clk 0:02:50.6]} 5. g3 {[%clk 0:02:57.4]}
5... Be7 {[%clk 0:02:51]} 6. Bg2 {[%clk 0:02:57.5]} 6... O-O {[%clk 0:02:51.9]}
7. Nbd2 {[%clk 0:02:56.9]} 7... Nbd7 {[%clk 0:02:52.4]} 8. O-O {[%clk
0:02:56.7]} 8... Re8 {[%clk 0:02:49.8]} 9. Rd1 {[%clk 0:02:56.2]} 9... Bf8
{[%clk 0:02:49.4]} 10. e4 {[%clk 0:02:55.6]} 10... e5 {[%clk 0:02:44.4]} 11.
dxe5 {[%clk 0:02:51.3]} 11... Nxe5 {[%clk 0:02:45.3]} 12. exd5 {[%clk
0:02:50.8]} 12... cxd5 {[%clk 0:02:42.3]} 13. Nxe5 {[%clk 0:02:49.2]} 13... Rxe5
{[%clk 0:02:33.1]} 14. Nf3 {[%clk 0:02:49.3]} 14... Bf5 {[%clk 0:02:30.3]} 15.
Qb3 {[%clk 0:02:31.5]} 15... Re2 {[%clk 0:02:22.1]} 16. Bg5 {[%clk 0:01:55.5]}
16... Bc2 {[%clk 0:01:53.8]} 17. Qxb7 {[%clk 0:01:23]} 17... Bxd1 {[%clk
0:01:40.8]} 18. Rxd1 {[%clk 0:01:22.3]} 18... Qb6 {[%clk 0:01:31.1]} 19. Qxb6
{[%clk 0:01:11.5]} 19... axb6 {[%clk 0:01:32]} 20. cxd5 {[%clk 0:00:23.4]} 20...
Ng4 {[%clk 0:01:19.2]} 21. d6 {[%clk 0:00:17.4]} 21... Nxf2 {[%clk 0:01:12.5]}
22. Rf1 {[%clk 0:00:16.2]} 22... Ne4 {[%clk 0:01:09.1]} 23. Nd4 {[%clk
0:00:15.4]} 23... Rxg2+ {[%clk 0:01:03.4]} 24. Kxg2 {[%clk 0:00:14.7]} 24...
Nxg5 {[%clk 0:01:04.3]} 25. d7 {[%clk 0:00:13.7]} 25... Rd8 {[%clk 0:00:55.4]}
26. Nc6 {[%clk 0:00:10.8]} 26... Rxd7 {[%clk 0:00:55.4]} 27. Ne5 {[%clk
0:00:11.1]} 27... Rd2+ {[%clk 0:00:55.1]} 28. Kg1 {[%clk 0:00:09.9]} 28... Rxb2
{[%clk 0:00:47.2]} 29. h4 {[%clk 0:00:09.6]} 29... Nh3+ {[%clk 0:00:44.8]} 30.
Kh1 {[%clk 0:00:08.5]} 30... f6 {[%clk 0:00:42.8]} 31. Nd7 {[%clk 0:00:07.9]}
31... Bd6 {[%clk 0:00:35.1]} 32. Nxb6 {[%clk 0:00:05.1]} 32... Bxg3 {[%clk
0:00:34.7]} 0-1

[Event "Late-Titled-Tuesday-Blitz-December-26-2023"]
[Site "Chess.com"]
[Date "2023.12.26"]
[Round "8"]
[White "monalize"]
[Black "GMthekingindian"]
[Result "1-0"]
[WhiteElo "2490"]
[BlackElo "2312"]
[TimeControl "180+1"]
[EndTime "15:26:45 PST"]
[Termination "monalize won on time"]

1. e4 {[%clk 0:03:00.9]} 1... c5 {[%clk 0:02:59.8]} 2. Nf3 {[%clk 0:03:00.1]}
2... d6 {[%clk 0:03:00.3]} 3. d4 {[%clk 0:02:59.6]} 3... cxd4 {[%clk 0:03:01.2]}
4. Qxd4 {[%clk 0:02:59.7]} 4... Nc6 {[%clk 0:03:00]} 5. Qe3 {[%clk 0:02:59.4]}
5... e5 {[%clk 0:02:55]} 6. Bc4 {[%clk 0:02:54.5]} 6... Be6 {[%clk 0:02:50.5]}
7. Nbd2 {[%clk 0:02:51.7]} 7... Be7 {[%clk 0:02:44.3]} 8. O-O {[%clk 0:02:50.8]}
8... Rc8 {[%clk 0:02:36.4]} 9. c3 {[%clk 0:02:40.4]} 9... Nf6 {[%clk 0:02:30.2]}
10. Rd1 {[%clk 0:02:38.3]} 10... O-O {[%clk 0:02:26]} 11. Bb3 {[%clk 0:02:37.5]}
11... Qc7 {[%clk 0:02:06.7]} 12. Nf1 {[%clk 0:02:25.9]} 12... a6 {[%clk
0:01:59.9]} 13. Ng3 {[%clk 0:02:01.3]} 13... Na5 {[%clk 0:01:44.7]} 14. Bc2
{[%clk 0:01:49.3]} 14... Rfe8 {[%clk 0:01:13.7]} 15. Nf5 {[%clk 0:01:46.2]}
15... Bf8 {[%clk 0:01:01.6]} 16. Qg5 {[%clk 0:01:43.7]} 16... Bxf5 {[%clk
0:00:48.1]} 17. Qxf5 {[%clk 0:01:38]} 17... Rcd8 {[%clk 0:00:24.9]} 18. Bg5
{[%clk 0:01:36.6]} 18... Qd7 {[%clk 0:00:19.6]} 19. Qxd7 {[%clk 0:01:28.9]}
19... Rxd7 {[%clk 0:00:20.5]} 20. Bxf6 {[%clk 0:01:27.2]} 20... gxf6 {[%clk
0:00:21.1]} 21. Nh4 {[%clk 0:01:27.2]} 21... Nc4 {[%clk 0:00:17.7]} 22. Rab1
{[%clk 0:01:25.8]} 22... Red8 {[%clk 0:00:16.4]} 23. Bb3 {[%clk 0:01:23.2]}
23... b5 {[%clk 0:00:14.9]} 24. Bxc4 {[%clk 0:01:18.4]} 24... bxc4 {[%clk
0:00:15.8]} 25. Rd5 {[%clk 0:01:17.9]} 25... Rc7 {[%clk 0:00:11.4]} 26. Nf5
{[%clk 0:01:17.1]} 26... Rdc8 {[%clk 0:00:10.2]} 27. g3 {[%clk 0:01:12.2]} 27...
Rc5 {[%clk 0:00:10.1]} 28. Rd2 {[%clk 0:01:10.3]} 28... Ra5 {[%clk 0:00:09.8]}
29. a3 {[%clk 0:01:09.2]} 29... Rc6 {[%clk 0:00:09.2]} 30. Kg2 {[%clk
0:01:08.6]} 30... Rb5 {[%clk 0:00:09.6]} 31. Kf3 {[%clk 0:01:05.5]} 31... Rcb6
{[%clk 0:00:09.9]} 32. Ke2 {[%clk 0:00:47.9]} 32... d5 {[%clk 0:00:08.4]} 33.
exd5 {[%clk 0:00:45.3]} 33... Bxa3 {[%clk 0:00:08.2]} 34. d6 {[%clk 0:00:43.6]}
34... Rb8 {[%clk 0:00:02.2]} 35. d7 {[%clk 0:00:42.2]} 1-0

[Event "Late-Titled-Tuesday-Blitz-December-26-2023"]
[Site "Chess.com"]
[Date "2023.12.26"]
[Round "8"]
[White "ural58"]
[Black "IngOscarArdila"]
[Result "1-0"]
[WhiteElo "2472"]
[BlackElo "2315"]
[TimeControl "180+1"]
[EndTime "15:26:46 PST"]
[Termination "ural58 won on time"]

1. e4 {[%clk 0:02:54.1]} 1... e5 {[%clk 0:03:00.1]} 2. Nf3 {[%clk 0:02:47.4]}
2... Nf6 {[%clk 0:03:00.4]} 3. d4 {[%clk 0:02:46]} 3... Nxe4 {[%clk 0:03:00.2]}
4. Bd3 {[%clk 0:02:45.3]} 4... d5 {[%clk 0:03:00.4]} 5. Nxe5 {[%clk 0:02:45.4]}
5... Nd7 {[%clk 0:03:00.6]} 6. Nc3 {[%clk 0:02:40.4]} 6... Nxc3 {[%clk
0:02:59.8]} 7. bxc3 {[%clk 0:02:40.1]} 7... Nxe5 {[%clk 0:02:59.2]} 8. dxe5
{[%clk 0:02:40]} 8... Bc5 {[%clk 0:02:58.3]} 9. O-O {[%clk 0:02:36.7]} 9... Be6
{[%clk 0:02:57.9]} 10. Kh1 {[%clk 0:02:34.6]} 10... Qh4 {[%clk 0:02:57.4]} 11.
f4 {[%clk 0:02:30.4]} 11... g6 {[%clk 0:02:57.6]} 12. Rb1 {[%clk 0:02:27.3]}
12... O-O-O {[%clk 0:02:53.8]} 13. a4 {[%clk 0:02:17.3]} 13... a5 {[%clk
0:02:50.2]} 14. Rb5 {[%clk 0:02:16.2]} 14... Bb6 {[%clk 0:02:50.3]} 15. Ba3
{[%clk 0:02:14.4]} 15... Bd7 {[%clk 0:02:37.8]} 16. Rxb6 {[%clk 0:02:13]} 16...
cxb6 {[%clk 0:02:36.1]} 17. Bd6 {[%clk 0:02:12.8]} 17... Bxa4 {[%clk 0:02:27.4]}
18. Qb1 {[%clk 0:02:10.2]} 18... Rxd6 {[%clk 0:02:25.4]} 19. exd6 {[%clk
0:02:10.1]} 19... Qd8 {[%clk 0:02:25.5]} 20. c4 {[%clk 0:01:57.2]} 20... Qxd6
{[%clk 0:02:16.2]} 21. Qa1 {[%clk 0:01:56.4]} 21... Rd8 {[%clk 0:01:41]} 22.
Qxa4 {[%clk 0:01:54.5]} 22... d4 {[%clk 0:01:41.5]} 23. f5 {[%clk 0:01:51.8]}
23... g5 {[%clk 0:01:40.7]} 24. f6 {[%clk 0:01:51.2]} 24... Kc7 {[%clk
0:01:38.7]} 25. Qb5 {[%clk 0:01:51.2]} 25... h6 {[%clk 0:01:37.4]} 26. Qf5
{[%clk 0:01:44.6]} 26... a4 {[%clk 0:01:29.2]} 27. h3 {[%clk 0:01:40.7]} 27...
a3 {[%clk 0:01:28.4]} 28. Ra1 {[%clk 0:01:40.2]} 28... Qb4 {[%clk 0:01:16]} 29.
Qe5+ {[%clk 0:01:39]} 29... Rd6 {[%clk 0:00:55.9]} 30. Qe7+ {[%clk 0:01:38.7]}
30... Kb8 {[%clk 0:00:53.5]} 31. Qxf7 {[%clk 0:01:37]} 31... Qb2 {[%clk
0:00:51.2]} 32. Re1 {[%clk 0:01:34.6]} 32... a2 {[%clk 0:00:21.4]} 33. Qf8+
{[%clk 0:01:00.4]} 33... Kc7 {[%clk 0:00:19.7]} 34. Qe7+ {[%clk 0:00:55.6]}
34... Rd7 {[%clk 0:00:20.2]} 35. Qe5+ {[%clk 0:00:55.4]} 35... Rd6 {[%clk
0:00:13.5]} 36. c5 {[%clk 0:00:53.3]} 36... bxc5 {[%clk 0:00:11]} 37. Qxc5+
{[%clk 0:00:53.4]} 37... Rc6 {[%clk 0:00:03.5]} 38. Qa5+ {[%clk 0:00:53.3]} 1-0

[Event "Late-Titled-Tuesday-Blitz-December-26-2023"]
[Site "Chess.com"]
[Date "2023.12.26"]
[Round "8"]
[White "PushingpawnsNYC"]
[Black "norman927"]
[Result "1-0"]
[WhiteElo "2476"]
[BlackElo "2312"]
[TimeControl "180+1"]
[EndTime "15:26:47 PST"]
[Termination "PushingpawnsNYC won on time"]

1. e4 {[%clk 0:02:56.4]} 1... c5 {[%clk 0:02:59.9]} 2. Nc3 {[%clk 0:02:55.5]}
2... Nc6 {[%clk 0:02:56.3]} 3. Bb5 {[%clk 0:02:55.7]} 3... Nd4 {[%clk
0:02:55.1]} 4. Nf3 {[%clk 0:02:55.5]} 4... Nxb5 {[%clk 0:02:52.4]} 5. Nxb5
{[%clk 0:02:52.8]} 5... e6 {[%clk 0:02:46.5]} 6. d4 {[%clk 0:02:51.2]} 6... a6
{[%clk 0:02:39.4]} 7. Nc3 {[%clk 0:02:50]} 7... cxd4 {[%clk 0:02:38.6]} 8. Qxd4
{[%clk 0:02:48.6]} 8... d6 {[%clk 0:02:21.2]} 9. Bg5 {[%clk 0:02:45.5]} 9... Qc7
{[%clk 0:02:12.8]} 10. O-O-O {[%clk 0:02:43]} 10... Bd7 {[%clk 0:01:35.7]} 11.
Rhe1 {[%clk 0:02:32.2]} 11... Rc8 {[%clk 0:01:18.7]} 12. Re2 {[%clk 0:02:23.4]}
12... h6 {[%clk 0:01:11.1]} 13. Bh4 {[%clk 0:02:19]} 13... b5 {[%clk 0:01:00.2]}
14. Nd5 {[%clk 0:02:03.2]} 14... Qc5 {[%clk 0:00:42.9]} 15. Qd2 {[%clk
0:01:55.1]} 15... g5 {[%clk 0:00:37.3]} 16. Bg3 {[%clk 0:01:50.3]} 16... exd5
{[%clk 0:00:28.4]} 17. exd5+ {[%clk 0:01:48.6]} 17... Kd8 {[%clk 0:00:28.5]} 18.
Nd4 {[%clk 0:01:44.5]} 18... Bg7 {[%clk 0:00:25.6]} 19. Nc6+ {[%clk 0:01:18.6]}
19... Bxc6 {[%clk 0:00:13.2]} 20. dxc6 {[%clk 0:01:09.7]} 20... Rxc6 {[%clk
0:00:09.5]} 21. Bxd6 {[%clk 0:01:00.2]} 21... Rxd6 {[%clk 0:00:09]} 22. Qxd6+
{[%clk 0:01:00.2]} 22... Qxd6 {[%clk 0:00:09.4]} 23. Rxd6+ {[%clk 0:01:00.2]}
23... Kc7 {[%clk 0:00:10]} 24. Rxa6 {[%clk 0:00:59.6]} 24... Kb7 {[%clk
0:00:06]} 25. Rd6 {[%clk 0:00:57.3]} 25... Nf6 {[%clk 0:00:03.8]} 26. Re7+
{[%clk 0:00:55.6]} 26... Kc8 {[%clk 0:00:04.3]} 27. Rxf7 {[%clk 0:00:55.8]}
27... Ne8 {[%clk 0:00:03.3]} 28. Ra6 {[%clk 0:00:54.6]} 28... Kb8 {[%clk
0:00:02.8]} 29. Rb6+ {[%clk 0:00:51.9]} 29... Kc8 {[%clk 0:00:03.1]} 30. Rxb5
{[%clk 0:00:51.7]} 30... Rf8 {[%clk 0:00:03.4]} 31. Rxf8 {[%clk 0:00:50.6]}
31... Bxf8 {[%clk 0:00:04.1]} 32. a4 {[%clk 0:00:50.6]} 32... Bd6 {[%clk
0:00:03.5]} 33. g3 {[%clk 0:00:49.1]} 33... Nc7 {[%clk 0:00:04]} 34. Rb3 {[%clk
0:00:47]} 34... Kd7 {[%clk 0:00:03.1]} 35. a5 {[%clk 0:00:46.8]} 35... Na6
{[%clk 0:00:02.7]} 36. Rb6 {[%clk 0:00:45.6]} 36... Nc5 {[%clk 0:00:02.3]} 37.
a6 {[%clk 0:00:44.7]} 37... Bc7 {[%clk 0:00:01.8]} 38. Rxh6 {[%clk 0:00:43.9]}
1-0

[Event "Late-Titled-Tuesday-Blitz-December-26-2023"]
[Site "Chess.com"]
[Date "2023.12.26"]
[Round "8"]
[White "CheckThis4"]
[Black "Skatchkov_V"]
[Result "0-1"]
[WhiteElo "2712"]
[BlackElo "2601"]
[TimeControl "180+1"]
[EndTime "15:26:53 PST"]
[Termination "Skatchkov_V won on time"]

1. e4 {[%clk 0:03:00.9]} 1... e5 {[%clk 0:02:59.9]} 2. Nf3 {[%clk 0:03:00.6]}
2... d5 {[%clk 0:03:00.5]} 3. exd5 {[%clk 0:02:50.7]} 3... e4 {[%clk 0:03:01.4]}
4. Qe2 {[%clk 0:02:48.9]} 4... Nf6 {[%clk 0:03:01.1]} 5. d3 {[%clk 0:02:47.1]}
5... Qxd5 {[%clk 0:03:00]} 6. Nbd2 {[%clk 0:02:38.5]} 6... Nc6 {[%clk
0:02:59.2]} 7. Nxe4 {[%clk 0:02:27.7]} 7... Be6 {[%clk 0:02:59.2]} 8. Nxf6+
{[%clk 0:02:20.2]} 8... gxf6 {[%clk 0:03:00.1]} 9. Qe4 {[%clk 0:02:13.2]} 9...
Qd7 {[%clk 0:02:58.8]} 10. Be2 {[%clk 0:02:11.1]} 10... Rg8 {[%clk 0:02:53.8]}
11. Be3 {[%clk 0:02:06.3]} 11... O-O-O {[%clk 0:02:50.1]} 12. a3 {[%clk
0:01:57.3]} 12... f5 {[%clk 0:02:30.4]} 13. Qa4 {[%clk 0:01:53.6]} 13... Rg4
{[%clk 0:02:17.1]} 14. c4 {[%clk 0:01:46.9]} 14... f4 {[%clk 0:02:01.9]} 15.
Bxa7 {[%clk 0:01:32.6]} 15... Bg7 {[%clk 0:01:50.3]} 16. O-O {[%clk 0:01:27.7]}
16... Rg8 {[%clk 0:01:45.4]} 17. Bc5 {[%clk 0:01:23]} 17... Kb8 {[%clk
0:01:28.6]} 18. Kh1 {[%clk 0:01:15.9]} 18... Bf6 {[%clk 0:01:24.9]} 19. Rg1
{[%clk 0:01:13.5]} 19... R8g6 {[%clk 0:01:14.9]} 20. Rae1 {[%clk 0:00:57.6]}
20... Rh6 {[%clk 0:01:03]} 21. h3 {[%clk 0:00:57.2]} 21... Rg8 {[%clk
0:00:46.8]} 22. Nh2 {[%clk 0:00:39]} 22... Rg5 {[%clk 0:00:41.7]} 23. d4 {[%clk
0:00:31.3]} 23... Bxh3 {[%clk 0:00:41.2]} 24. Bf3 {[%clk 0:00:15]} 24... Bg4
{[%clk 0:00:38.3]} 25. Bxg4 {[%clk 0:00:13.3]} 25... Qxg4 {[%clk 0:00:20.8]} 26.
Re8+ {[%clk 0:00:12.4]} 26... Bd8 {[%clk 0:00:21.4]} 27. Qa7+ {[%clk 0:00:08.2]}
27... Nxa7 {[%clk 0:00:19.6]} 28. Rxd8+ {[%clk 0:00:07.9]} 28... Nc8 {[%clk
0:00:20.3]} 0-1

[Event "Late-Titled-Tuesday-Blitz-December-26-2023"]
[Site "Chess.com"]
[Date "2023.12.26"]
[Round "8"]
[White "FrenchHarvey"]
[Black "Korchmar_Vasiliy"]
[Result "1-0"]
[WhiteElo "2654"]
[BlackElo "2787"]
[TimeControl "180+1"]
[EndTime "15:26:59 PST"]
[Termination "FrenchHarvey won on time"]

1. d4 {[%clk 0:03:00.9]} 1... Nf6 {[%clk 0:02:59.8]} 2. Nf3 {[%clk 0:03:00.7]}
2... d5 {[%clk 0:03:00]} 3. Bf4 {[%clk 0:02:58]} 3... c5 {[%clk 0:02:59.9]} 4.
e3 {[%clk 0:02:56.8]} 4... Nc6 {[%clk 0:03:00.3]} 5. Nbd2 {[%clk 0:02:57.4]}
5... cxd4 {[%clk 0:03:00.1]} 6. exd4 {[%clk 0:02:57.3]} 6... Qb6 {[%clk
0:03:00.8]} 7. Nb3 {[%clk 0:02:56.5]} 7... Bg4 {[%clk 0:03:01.1]} 8. Be2 {[%clk
0:02:54.2]} 8... e6 {[%clk 0:03:01.4]} 9. O-O {[%clk 0:02:53.8]} 9... Be7 {[%clk
0:03:01.5]} 10. c3 {[%clk 0:02:53.9]} 10... O-O {[%clk 0:03:01.3]} 11. Ne5
{[%clk 0:02:54]} 11... Bxe2 {[%clk 0:02:57.6]} 12. Qxe2 {[%clk 0:02:54.5]} 12...
Rac8 {[%clk 0:02:55.3]} 13. Bg5 {[%clk 0:02:52.5]} 13... Rfe8 {[%clk 0:02:54.5]}
14. Bxf6 {[%clk 0:02:49.7]} 14... Bxf6 {[%clk 0:02:53.8]} 15. Nd7 {[%clk
0:02:48.7]} 15... Qd8 {[%clk 0:02:54.4]} 16. Nxf6+ {[%clk 0:02:46.2]} 16... Qxf6
{[%clk 0:02:55.3]} 17. a4 {[%clk 0:02:42.6]} 17... Re7 {[%clk 0:02:48.7]} 18. f4
{[%clk 0:02:39.5]} 18... Rec7 {[%clk 0:02:37.2]} 19. Rae1 {[%clk 0:02:37.7]}
19... Ne7 {[%clk 0:02:36.6]} 20. f5 {[%clk 0:02:30.1]} 20... Nxf5 {[%clk
0:02:33.6]} 21. g4 {[%clk 0:02:30.3]} 21... Nxd4 {[%clk 0:02:04]} 22. Nxd4
{[%clk 0:02:28.3]} 22... Qg6 {[%clk 0:02:03]} 23. Kh1 {[%clk 0:02:20.7]} 23...
Rc4 {[%clk 0:01:57.6]} 24. h3 {[%clk 0:02:15.5]} 24... h6 {[%clk 0:01:55.5]} 25.
Rf3 {[%clk 0:02:13.4]} 25... a6 {[%clk 0:01:47.6]} 26. Qd3 {[%clk 0:02:05.6]}
26... Qxd3 {[%clk 0:01:45.9]} 27. Rxd3 {[%clk 0:02:05.9]} 27... Rxa4 {[%clk
0:01:46.5]} 28. Rf3 {[%clk 0:02:06.1]} 28... b5 {[%clk 0:01:41]} 29. Ref1 {[%clk
0:02:06.1]} 29... Rc7 {[%clk 0:01:41]} 30. R1f2 {[%clk 0:02:00.9]} 30... b4
{[%clk 0:01:36.9]} 31. Kg2 {[%clk 0:01:54.7]} 31... Rb7 {[%clk 0:01:09.2]} 32.
b3 {[%clk 0:01:44]} 32... Ra3 {[%clk 0:01:09.1]} 33. cxb4 {[%clk 0:01:43.9]}
33... e5 {[%clk 0:00:56.3]} 34. Nf5 {[%clk 0:01:40.4]} 34... e4 {[%clk
0:00:42.8]} 35. Rc3 {[%clk 0:01:38.3]} 35... Rxb4 {[%clk 0:00:41.1]} 36. Ne7+
{[%clk 0:01:38.3]} 36... Kh7 {[%clk 0:00:38.9]} 37. Nxd5 {[%clk 0:01:38.9]}
37... Rbxb3 {[%clk 0:00:38.5]} 38. Rxb3 {[%clk 0:01:39.3]} 38... Rxb3 {[%clk
0:00:39]} 39. Rxf7 {[%clk 0:01:39.1]} 39... Rd3 {[%clk 0:00:29.7]} 40. Rd7
{[%clk 0:01:29.2]} 40... a5 {[%clk 0:00:23.7]} 41. h4 {[%clk 0:01:22.4]} 41...
a4 {[%clk 0:00:08.2]} 42. h5 {[%clk 0:01:22.3]} 42... Kg8 {[%clk 0:00:08.7]} 43.
Ne7+ {[%clk 0:01:21.7]} 43... Kf7 {[%clk 0:00:03.4]} 44. Ra7 {[%clk 0:01:22.2]}
44... a3 {[%clk 0:00:03.6]} 45. Nf5+ {[%clk 0:01:17.6]} 45... Kf6 {[%clk
0:00:03.9]} 46. Nxg7 {[%clk 0:01:16.4]} 46... Kg5 {[%clk 0:00:03.6]} 47. Ra4
{[%clk 0:01:04.7]} 47... Re3 {[%clk 0:00:01.8]} 48. Nf5 {[%clk 0:01:03.7]} 48...
Re2+ {[%clk 0:00:01.9]} 49. Kf1 {[%clk 0:01:03.9]} 49... Rd2 {[%clk 0:00:01.2]}
50. Rxa3 {[%clk 0:01:03.5]} 1-0

[Event "Late-Titled-Tuesday-Blitz-December-26-2023"]
[Site "Chess.com"]
[Date "2023.12.26"]
[Round "8"]
[White "SocoLoco"]
[Black "Inepton_Fermion"]
[Result "1-0"]
[WhiteElo "2138"]
[BlackElo "2396"]
[TimeControl "180+1"]
[EndTime "15:27:05 PST"]
[Termination "SocoLoco won on time"]

1. e4 {[%clk 0:03:00]} 1... g6 {[%clk 0:02:59.4]} 2. d3 {[%clk 0:02:59.5]} 2...
Bg7 {[%clk 0:02:59.3]} 3. c3 {[%clk 0:02:59.8]} 3... d5 {[%clk 0:02:57.8]} 4.
Qc2 {[%clk 0:03:00.2]} 4... dxe4 {[%clk 0:02:55.2]} 5. dxe4 {[%clk 0:03:01.1]}
5... Nf6 {[%clk 0:02:53.7]} 6. h3 {[%clk 0:03:00.6]} 6... O-O {[%clk 0:02:52.9]}
7. Nf3 {[%clk 0:03:00.7]} 7... c5 {[%clk 0:02:49.6]} 8. Be2 {[%clk 0:03:00.9]}
8... b6 {[%clk 0:02:49.2]} 9. Bg5 {[%clk 0:02:56.5]} 9... Bb7 {[%clk 0:02:43.1]}
10. Nbd2 {[%clk 0:02:56.1]} 10... Nc6 {[%clk 0:02:32.8]} 11. O-O {[%clk
0:02:54.2]} 11... Qc7 {[%clk 0:02:31.4]} 12. Rfe1 {[%clk 0:02:53.6]} 12... Ne5
{[%clk 0:02:18.1]} 13. Kh1 {[%clk 0:02:27.3]} 13... Nxf3 {[%clk 0:02:01.9]} 14.
Bxf3 {[%clk 0:02:24.8]} 14... Rad8 {[%clk 0:01:57.4]} 15. Rad1 {[%clk
0:02:10.8]} 15... Rd7 {[%clk 0:01:36.2]} 16. Nf1 {[%clk 0:01:59.1]} 16... Rfd8
{[%clk 0:01:34]} 17. Rxd7 {[%clk 0:01:56.2]} 17... Rxd7 {[%clk 0:01:33.7]} 18.
Ne3 {[%clk 0:01:51.5]} 18... Qe5 {[%clk 0:01:18.6]} 19. Bxf6 {[%clk 0:01:47.6]}
19... Bxf6 {[%clk 0:01:13.1]} 20. Ng4 {[%clk 0:01:39.4]} 20... Qf4 {[%clk
0:01:08.9]} 21. Nxf6+ {[%clk 0:01:28.2]} 21... exf6 {[%clk 0:01:09.8]} 22. Qa4
{[%clk 0:00:38.3]} 22... Qd6 {[%clk 0:00:12.8]} 23. Rd1 {[%clk 0:00:29.2]} 23...
Qc6 {[%clk 0:00:05.8]} 24. Qxc6 {[%clk 0:00:23.7]} 24... Bxc6 {[%clk 0:00:06.7]}
25. Rxd7 {[%clk 0:00:23.5]} 25... Bxd7 {[%clk 0:00:07.6]} 26. Kg1 {[%clk
0:00:24]} 26... Kf8 {[%clk 0:00:07.6]} 27. Kf1 {[%clk 0:00:24.6]} 27... Ke7
{[%clk 0:00:08.2]} 28. Ke2 {[%clk 0:00:25.5]} 28... Kd6 {[%clk 0:00:08.6]} 29.
Ke3 {[%clk 0:00:26.1]} 29... Ke5 {[%clk 0:00:08.2]} 30. Be2 {[%clk 0:00:26.7]}
30... g5 {[%clk 0:00:03.8]} 31. g3 {[%clk 0:00:26.5]} 31... f5 {[%clk
0:00:02.7]} 32. f4+ {[%clk 0:00:26.5]} 32... gxf4+ {[%clk 0:00:03]} 33. gxf4+
{[%clk 0:00:27.1]} 33... Kd6 {[%clk 0:00:02.4]} 34. e5+ {[%clk 0:00:27.5]} 34...
Ke7 {[%clk 0:00:01.7]} 35. Bf3 {[%clk 0:00:24.9]} 35... f6 {[%clk 0:00:01.8]}
36. Bd5 {[%clk 0:00:24.3]} 1-0

[Event "Late-Titled-Tuesday-Blitz-December-26-2023"]
[Site "Chess.com"]
[Date "2023.12.26"]
[Round "8"]
[White "PawnEatingZombie"]
[Black "maurovargas01"]
[Result "1-0"]
[WhiteElo "2102"]
[BlackElo "1831"]
[TimeControl "180+1"]
[EndTime "15:27:05 PST"]
[Termination "PawnEatingZombie won on time"]

1. e4 {[%clk 0:03:00.9]} 1... d5 {[%clk 0:02:57.1]} 2. exd5 {[%clk 0:03:00.3]}
2... Qxd5 {[%clk 0:02:58]} 3. Nc3 {[%clk 0:03:00.5]} 3... Qa5 {[%clk 0:02:58.2]}
4. Nf3 {[%clk 0:02:59.7]} 4... c6 {[%clk 0:02:57.7]} 5. Be2 {[%clk 0:03:00.1]}
5... Nf6 {[%clk 0:02:57.8]} 6. O-O {[%clk 0:02:55.6]} 6... Bf5 {[%clk
0:02:56.9]} 7. b4 {[%clk 0:02:55.1]} 7... Qc7 {[%clk 0:02:50]} 8. b5 {[%clk
0:02:40.6]} 8... e5 {[%clk 0:02:47.9]} 9. Re1 {[%clk 0:02:28.8]} 9... Bc5 {[%clk
0:02:37.5]} 10. Bc4 {[%clk 0:02:25.3]} 10... O-O {[%clk 0:02:32]} 11. Nxe5
{[%clk 0:02:21.5]} 11... Nbd7 {[%clk 0:02:21.5]} 12. d4 {[%clk 0:02:06]} 12...
Nxe5 {[%clk 0:02:14.4]} 13. Rxe5 {[%clk 0:02:00]} 13... Bxd4 {[%clk 0:01:40.2]}
14. Qxd4 {[%clk 0:01:55.4]} 14... Rad8 {[%clk 0:01:38.9]} 15. b6 {[%clk
0:01:11.6]} 15... axb6 {[%clk 0:01:33]} 16. Qxd8 {[%clk 0:01:03.1]} 16... Qxe5
{[%clk 0:01:19.9]} 17. Qd2 {[%clk 0:00:58.8]} 17... b5 {[%clk 0:01:12.7]} 18.
Bd3 {[%clk 0:00:50.2]} 18... Rd8 {[%clk 0:01:06]} 19. Bb2 {[%clk 0:00:46.7]}
19... c5 {[%clk 0:00:57.5]} 20. Qe1 {[%clk 0:00:40.3]} 20... Qf4 {[%clk
0:00:18.5]} 21. Nxb5 {[%clk 0:00:31.1]} 21... Re8 {[%clk 0:00:11]} 22. Qd1
{[%clk 0:00:20.4]} 22... Ng4 {[%clk 0:00:10]} 23. Qxg4 {[%clk 0:00:03.2]} 23...
Bxg4 {[%clk 0:00:07]} 24. h3 {[%clk 0:00:02.5]} 24... Bd7 {[%clk 0:00:02.5]} 25.
Nc3 {[%clk 0:00:03.1]} 1-0